bitfinex/quotes_SOLUSD_20240826
["timestamp","ask_amount","ask_price","bid_price","bid_amount"]
[1724634158331,15.79048411,159.41,159.34,7.82101531]
[1724634158847,17.35909057,159.41,159.35,3.89928263]
[1724634159168,17.35909057,159.41,159.36,3.89928263]
[1724634159337,17.35909057,159.41,159.34,6.56596593]
[1724634159540,17.35909057,159.41,159.32,20.0]
[1724634159541,17.35909057,159.41,159.35,3.89939647]
[1724634159856,17.35909057,159.41,159.34,6.56596593]
[1724634160056,17.35909057,159.41,159.35,3.90079743]
[1724634160366,17.35909057,159.41,159.34,6.56574598]
[1724634160548,17.35909057,159.41,159.33,6.56574598]
[1724634160857,17.35909057,159.41,159.34,10.46654319]
[1724634161057,17.35909057,159.41,159.35,3.90079721]
[1724634161244,17.35909057,159.41,159.36,3.90079721]
[1724634161447,17.35909057,159.41,159.33,6.56574598]
[1724634161646,17.35909057,159.41,159.34,10.46652906]
[1724634161848,17.35909057,159.41,159.35,3.90078308]
[1724634162054,17.35909057,159.41,159.32,20.0]
[1724634162055,17.35909057,159.41,159.36,3.90078308]
[1724634162243,17.35909057,159.41,159.33,6.56574598]
[1724634162553,17.35909057,159.41,159.34,10.4657804]
[1724634162742,17.35909057,159.41,159.35,10.4657804]
[1724634163048,6.1014,159.41,159.36,10.4657804]
[1724634163256,6.1014,159.41,159.37,3.90003442]
[1724634163257,7.67007824,159.41,159.37,3.90003442]
[1724634163564,7.67007824,159.41,159.38,3.90003442]
[1724634163758,7.67007824,159.41,159.36,6.56574598]
[1724634163963,7.67007824,159.41,159.37,3.90023852]
[1724634164158,7.67007824,159.41,159.38,3.90023852]
[1724634164458,7.67007824,159.41,159.35,6.56482992]
[1724634164668,9.68908411,159.4,159.36,10.46509523]
[1724634164867,1.56877903,159.39,159.37,3.90026531]
[1724634165171,1.56877903,159.39,159.38,3.90026531]
[1724634166362,1.56877903,159.39,159.38,3.90032286]
[1724634168231,9.68908411,159.4,159.38,3.90032286]
[1724634168232,11.25784084,159.4,159.38,3.90032286]
[1724634168463,11.25784084,159.4,159.33,7.85242115]
[1724634168636,11.25784084,159.4,159.34,3.90029349]
[1724634168843,11.25784084,159.4,159.35,3.90029349]
[1724634169054,11.25784084,159.4,159.36,3.90029349]
[1724634169239,6.1014,159.41,159.37,3.90029349]
[1724634169445,6.1014,159.41,159.38,3.90029349]
[1724634169638,7.6700602,159.41,159.33,7.85242115]
[1724634169842,7.6700602,159.41,159.34,3.90024007]
[1724634170054,7.6700602,159.41,159.35,3.90024007]
[1724634170241,7.6700602,159.41,159.36,3.90024007]
[1724634170444,7.6700602,159.41,159.37,3.90024007]
[1724634170638,7.6700602,159.41,159.38,3.90024007]
[1724634170938,7.6700602,159.41,159.32,29.68908411]
[1724634171146,7.6700602,159.41,159.33,3.90023756]
[1724634171459,7.6700602,159.41,159.34,3.90023756]
[1724634171680,7.6700602,159.41,159.35,3.90023756]
[1724634171838,9.68908411,159.4,159.36,3.90023756]
[1724634172040,1.56880594,159.39,159.37,3.90023756]
[1724634172240,1.56880594,159.39,159.38,3.90023756]
[1724634172664,1.56880594,159.39,159.32,20.0]
[1724634172841,16.4602,159.42,159.34,9.68908411]
[1724634173052,1.56833054,159.44,159.36,9.68908411]
[1724634173350,1.56833054,159.44,159.34,9.68908411]
[1724634173543,9.68908411,159.43,159.35,65.0]
[1724634173748,1.56850084,159.42,159.36,3.89981455]
[1724634174474,1.56850084,159.42,159.37,3.89981455]
[1724634174656,1.56850084,159.42,159.38,3.89981455]
[1724634174982,11.25758333,159.43,159.39,3.89981455]
[1724634175145,9.68908411,159.43,159.35,20.0]
[1724634175346,9.68908411,159.43,159.36,3.89986041]
[1724634175568,9.68908411,159.43,159.37,3.89986041]
[1724634175777,9.68908411,159.43,159.38,3.89986041]
[1724634175961,9.68908411,159.43,159.39,3.89986041]
[1724634176164,9.68908411,159.43,159.37,20.0]
[1724634176471,9.68908411,159.43,159.38,3.89960027]
[1724634176785,6.524,159.45,159.39,3.89960027]
[1724634176786,16.21308411,159.45,159.39,3.89960027]
[1724634176949,16.21308411,159.45,159.4,3.89960027]
[1724634177271,16.21308411,159.45,159.35,20.0]
[1724634177453,16.21308411,159.45,159.36,48.89493975]
[1724634177774,16.21308411,159.45,159.37,23.89493975]
[1724634178077,16.21308411,159.45,159.38,5.46516516]
[1724634178373,1.56831964,159.44,159.39,5.46516516]
[1724634178552,9.68908411,159.43,159.4,5.46516516]
[1724634178770,9.68908411,159.43,159.41,1.57022541]
[1724634179085,9.68908411,159.43,159.42,1.5702365]
[1724634179881,9.68908411,159.43,159.35,20.0]
[1724634179882,9.68908411,159.43,159.36,3.89373036]
[1724634180064,1.56851576,159.42,159.37,5.46407727]
[1724634180264,1.56851576,159.42,159.38,5.46407727]
[1724634180464,1.56851576,159.42,159.39,5.46407727]
[1724634180768,1.56851576,159.42,159.4,1.57034691]
[1724634180977,1.56851576,159.42,159.41,1.57034691]
[1724634181403,1.56851576,159.42,159.35,20.0]
[1724634181692,1.56851576,159.42,159.41,1.57035692]
[1724634182288,1.56851576,159.42,159.35,20.0]
[1724634182465,1.56851576,159.42,159.36,1.57043311]
[1724634182782,1.56851576,159.42,159.37,1.57043311]
[1724634182969,1.56851576,159.42,159.38,1.57043311]
[1724634183173,1.56851576,159.42,159.35,20.0]
[1724634183174,1.56851576,159.42,159.39,1.57043311]
[1724634183406,1.56851576,159.42,159.4,1.57043311]
[1724634183699,1.56851576,159.42,159.41,1.57043311]
[1724634183860,1.56851576,159.42,159.34,20.0]
[1724634183861,11.25759987,159.42,159.34,20.0]
[1724634184065,11.25759987,159.42,159.35,1.57044918]
[1724634184260,9.68908411,159.4,159.36,1.57044918]
[1724634184589,9.68908411,159.4,159.31,15.0617]
[1724634184590,9.68908411,159.38,159.37,1.57044918]
[1724634185101,9.68908411,159.38,159.31,15.0617]
[1724634185388,1.56887477,159.37,159.32,1.57049452]
[1724634185561,1.56887477,159.37,159.33,1.57049452]
[1724634185895,1.56887477,159.37,159.34,1.57049452]
[1724634186195,1.56887477,159.37,159.35,1.57049452]
[1724634186384,1.56887477,159.37,159.36,1.57049452]
[1724634186566,1.56887477,159.37,159.36,1.57048516]
[1724634187788,9.68908411,159.38,159.36,1.57048516]
[1724634187986,9.68908411,159.38,159.37,1.57048516]
[1724634188325,16.19698411,159.4,159.33,1.25507151]
[1724634188472,16.19698411,159.4,159.34,1.57048457]
[1724634188666,16.19698411,159.4,159.33,1.25507151]
[1724634188667,16.19698411,159.4,159.35,1.57048457]
[1724634188863,16.19698411,159.4,159.36,1.57048457]
[1724634189099,17.76566,159.4,159.37,1.57048457]
[1724634189387,1.56870747,159.39,159.38,1.57048457]
[1724634191598,16.19698411,159.4,159.38,1.57048457]
[1724634191798,17.76567237,159.4,159.39,1.57048398]
[1724634191995,16.19698411,159.4,159.39,1.57048398]
[1724634192298,9.68908411,159.42,159.39,1.57048398]
[1724634192461,6.1086,159.44,159.4,1.57048398]
[1724634192668,7.67691193,159.44,159.41,1.57048398]
[1724634192970,7.67691193,159.44,159.36,20.0]
[1724634193190,7.67691193,159.44,159.37,1.57028529]
[1724634193386,7.67691193,159.44,159.38,1.57028529]
[1724634193585,7.67691193,159.44,159.39,1.57028529]
[1724634193798,7.67691193,159.44,159.4,1.57028529]
[1724634193981,7.67691193,159.44,159.41,1.57028529]
[1724634194175,7.67691193,159.44,159.42,1.57028529]
[1724634194498,7.67691193,159.44,159.36,20.0]
[1724634194837,7.67691193,159.44,159.37,1.57023607]
[1724634194984,7.67691193,159.44,159.38,1.57023736]
[1724634195183,7.67691193,159.44,159.39,1.57023736]
[1724634195401,1.56831193,159.44,159.4,1.57023736]
[1724634195577,1.56831193,159.44,159.41,1.57023736]
[1724634195782,1.56831193,159.44,159.42,1.57023736]
[1724634196009,1.56831193,159.44,159.36,20.0]
[1724634196182,1.56831193,159.44,159.37,1.57023592]
[1724634196401,1.56831193,159.44,159.36,20.0]
[1724634196690,12.4282,159.48,159.36,20.0]
[1724634196691,9.68908411,159.47,159.37,73.17254627]
[1724634196999,1.56824207,159.46,159.38,21.57021864]
[1724634197185,1.56824145,159.45,159.39,1.57021864]
[1724634197499,1.56824145,159.45,159.4,1.57021864]
[1724634197703,1.56824145,159.45,159.41,1.57021864]
[1724634197880,1.56824145,159.45,159.42,1.57021864]
[1724634198103,11.25732556,159.45,159.43,1.57021864]
[1724634198280,9.68908411,159.45,159.44,1.57021864]
[1724634199297,9.68908411,159.45,159.38,20.0]
[1724634199481,9.68908411,159.45,159.39,1.5699912]
[1724634199684,12.4281,159.48,159.4,1.5699912]
[1724634199989,9.68908411,159.46,159.41,1.5699912]
[1724634200306,1.56823893,159.45,159.42,1.5699912]
[1724634200611,1.56823893,159.45,159.43,1.5699912]
[1724634200784,1.56823893,159.45,159.38,20.0]
[1724634200985,1.56823893,159.45,159.39,1.56999249]
[1724634201307,1.56823893,159.45,159.4,1.56999249]
[1724634201483,1.56823893,159.45,159.38,20.0]
[1724634201484,1.56823893,159.45,159.41,1.57009306]
[1724634201692,1.56823893,159.45,159.38,20.0]
[1724634201693,1.56823893,159.45,159.42,1.57009306]
[1724634201991,9.68908411,159.44,159.38,20.0]
[1724634202188,1.56843434,159.43,159.39,1.57008394]
[1724634202404,1.56849341,159.42,159.4,1.57008394]
[1724634202716,1.56849341,159.42,159.33,15.7667]
[1724634202717,11.25757752,159.42,159.33,15.7667]
[1724634202879,11.25757752,159.42,159.34,1.5702969]
[1724634202880,9.68908411,159.4,159.34,1.5702969]
[1724634203081,1.56881927,159.39,159.35,1.5702969]
[1724634203312,1.56881927,159.39,159.36,1.57045534]
[1724634203313,9.68908411,159.38,159.36,1.57045534]
[1724634203605,1.56911276,159.37,159.32,1.57095669]
[1724634203820,21.7718,159.36,159.33,1.57095669]
[1724634203984,9.68908411,159.33,159.25,15.7667]
[1724634204188,9.68908411,159.3,159.26,1.57112058]
[1724634204386,1.56974209,159.29,159.26,1.57112058]
[1724634204705,1.56974209,159.29,159.21,15.7667]
[1724634204706,9.68908411,159.28,159.21,15.7667]
[1724634204892,1.56991959,159.27,159.21,15.7667]
[1724634205314,9.68908411,159.28,159.22,3.1432452]
[1724634205493,9.68908411,159.3,159.23,2.82753994]
[1724634205688,28.0471,159.36,159.24,2.82745249]
[1724634205887,9.68908411,159.33,159.25,1.57161998]
[1724634206102,9.68908411,159.33,159.26,2.82727869]
[1724634206303,9.68908411,159.33,159.23,17.96686228]
[1724634206304,9.68908411,159.33,159.27,1.57161998]
[1724634206516,9.68908411,159.33,159.28,1.57161998]
[1724634206710,9.68908411,159.33,159.25,1.57161998]
[1724634207010,9.68908411,159.33,159.26,1.57161998]
[1724634207308,9.68908411,159.33,159.27,1.57161998]
[1724634207511,9.68908411,159.35,159.28,1.57161998]
[1724634207700,9.68908411,159.35,159.28,2.82696851]
[1724634208697,9.68908411,159.37,159.28,2.82696851]
[1724634210221,30.50770083,159.38,159.25,25.80502081]
[1724634210392,30.50770083,159.38,159.26,66.57161998]
[1724634210587,30.50770083,159.38,159.27,1.57161998]
[1724634211111,52.32730083,159.4,159.28,24.26641998]
[1724634211426,52.32730083,159.4,159.29,21.57161998]
[1724634211721,1.56906895,159.39,159.29,20.0]
[1724634211891,1.56906895,159.39,159.3,1.57091638]
[1724634212809,52.32730083,159.4,159.3,1.57091638]
[1724634213715,1.5690651,159.39,159.3,1.57091638]
[1724634214096,24.23340083,159.38,159.3,1.57091638]
[1724634214293,1.56920921,159.37,159.3,1.57091638]
[1724634214700,24.23340083,159.38,159.29,21.25532294]
[1724634214909,24.23340083,159.38,159.3,2.82626969]
[1724634215416,1.56915201,159.37,159.29,20.0]
[1724634217530,30.50770083,159.38,159.29,20.0]
[1724634217849,30.50770083,159.38,159.29,21.25537446]
[1724634221326,30.50770083,159.38,159.29,20.0]
[1724634221512,30.50770083,159.38,159.29,21.25537321]
[1724634221706,1.56921586,159.37,159.28,22.6948]
[1724634222111,24.23340083,159.34,159.28,22.6948]
[1724634222314,1.56942331,159.33,159.28,16.2248]
[1724634222512,24.23340083,159.34,159.28,16.2248]
[1724634223426,25.80277199,159.34,159.28,16.2248]
[1724634223933,24.23340083,159.36,159.28,16.2248]
[1724634224615,1.56920712,159.35,159.28,16.2248]
[1724634225626,24.23340083,159.36,159.28,16.2248]
[1724634225810,24.23340083,159.36,159.29,1.25537121]
[1724634228455,24.23340083,159.36,159.29,2.82640568]
[1724634228840,24.23340083,159.36,159.29,1.25537121]
[1724634229209,24.23340083,159.36,159.28,16.2248]
[1724634229210,1.56921047,159.35,159.28,16.2248]
[1724634230543,24.23340083,159.34,159.28,16.2248]
[1724634230713,1.56945605,159.33,159.28,16.2248]
[1724634230914,1.56946651,159.33,159.28,16.2248]
[1724634231751,1.56946697,159.32,159.28,16.2248]
[1724634232261,9.69820927,159.3,159.24,21.5417]
[1724634232459,1.56973258,159.29,159.24,21.5417]
[1724634233863,9.69820927,159.28,159.24,21.5417]
[1724634234453,1.56978262,159.27,159.24,21.5417]
[1724634234639,1.56978262,159.27,159.24,15.3215]
[1724634235859,9.69820927,159.26,159.24,15.3215]
[1724634237237,9.69820927,159.26,159.2,6.1642]
[1724634237460,9.69820927,159.26,159.21,20.0]
[1724634237835,9.69820927,159.26,159.22,1.16325827]
[1724634240874,9.69820927,159.26,159.21,20.0]
[1724634241451,9.69820927,159.24,159.21,20.0]
[1724634241765,45.0,159.33,159.21,21.25602532]
[1724634241766,9.69820927,159.26,159.21,21.25602532]
[1724634241967,9.69820927,159.24,159.19,15.1348]
[1724634242171,9.69820927,159.24,159.2,20.0]
[1724634243052,9.69820927,159.24,159.19,15.1348]
[1724634243053,1.57011605,159.23,159.19,15.1348]
[1724634243252,11.26852261,159.24,159.19,15.1348]
[1724634243476,1.57028561,159.23,159.19,15.1348]
[1724634243979,9.69820927,159.22,159.19,15.1348]
[1724634244159,9.69820927,159.22,159.16,6.6598]
[1724634244348,9.69820927,159.22,159.17,20.0]
[1724634244752,1.57037217,159.21,159.17,20.0]
[1724634245360,9.69820927,159.22,159.17,20.0]
[1724634246391,1.57037285,159.21,159.17,20.0]
[1724634246595,1.57037285,159.21,159.16,20.0]
[1724634246964,9.69820927,159.22,159.16,20.0]
[1724634247288,9.69820927,159.22,159.16,21.25635444]
[1724634247651,9.69820927,159.22,159.16,20.0]
[1724634248156,9.69820927,159.22,159.17,1.57219858]
[1724634248358,9.69820927,159.22,159.16,20.0]
[1724634248359,1.57045753,159.21,159.16,20.0]
[1724634248573,1.57045753,159.21,159.17,1.57220942]
[1724634248773,1.57045753,159.21,159.16,20.0]
[1724634248975,11.26876505,159.22,159.16,20.0]
[1724634249685,11.26876505,159.22,159.17,1.57220963]
[1724634249852,9.69820927,159.22,159.17,1.57220963]
[1724634250388,9.69820927,159.22,159.16,20.0]
[1724634250569,9.69820927,159.2,159.16,20.0]
[1724634250893,9.69820927,159.18,159.11,15.6257]
[1724634251069,1.57084245,159.17,159.12,1.57261986]
[1724634251265,1.57084245,159.17,159.11,15.6257]
[1724634251870,9.69820927,159.16,159.11,15.6257]
[1724634253185,9.69820927,159.14,159.08,6.6614]
[1724634253391,11.26947612,159.14,159.07,15.6257]
[1724634253688,9.69820927,159.12,159.07,15.6257]
[1724634254467,1.57135765,159.11,159.07,15.6257]
[1724634254672,9.69820927,159.12,159.08,21.24422067]
[1724634255713,9.69820927,159.13,159.08,20.0]
[1724634255878,9.69820927,159.15,159.08,20.0]
[1724634257508,1.57115408,159.14,159.08,20.0]
[1724634258204,1.57115408,159.14,159.07,15.6257]
[1724634258205,9.69820927,159.11,159.04,6.6614]
[1724634258585,9.69820927,159.13,159.05,1.25712117]
[1724634259292,9.69820927,159.11,159.05,1.25712117]
[1724634259493,9.69820927,159.11,159.04,6.6614]
[1724634259798,9.69820927,159.11,159.05,1.25720759]
[1724634259996,9.69820927,159.11,159.03,15.4472]
[1724634260200,9.69820927,159.11,159.04,20.0]
[1724634260800,1.57151681,159.1,159.04,20.0]
[1724634262383,9.69820927,159.11,159.04,20.0]
[1724634263497,9.69820927,159.09,159.04,20.0]
[1724634264287,1.57172079,159.08,159.0,7.0806563]
[1724634264487,9.69820927,159.07,159.01,20.0]
[1724634265282,9.69820927,159.07,159.0,20.8188563]
[1724634265903,11.27007501,159.07,159.0,0.8188563]
[1724634266478,9.69820927,159.05,159.0,0.8188563]
[1724634266810,1.57201465,159.04,159.0,0.8188563]
[1724634267486,1.57201465,159.04,159.0,20.8188563]
[1724634268122,24.32964068,159.07,159.0,21.36476674]
[1724634268284,24.32964068,159.07,159.0,22.07658631]
[1724634268689,6.631,159.11,159.0,22.07658631]
[1724634268902,6.631,159.11,159.01,24.32964068]
[1724634269104,6.631,159.11,159.02,66.25725176]
[1724634269408,24.32964068,159.13,159.02,66.25725176]
[1724634270116,24.32964068,159.13,159.02,65.0]
[1724634270320,1.57151267,159.12,159.02,65.0]
[1724634272755,24.32964068,159.13,159.02,71.2592]
[1724634274741,30.64904068,159.15,159.03,15.9701]
[1724634274941,30.64904068,159.15,159.04,65.0]
[1724634275244,36.93244068,159.15,159.04,65.0]
[1724634275420,1.57144492,159.14,159.04,65.0]
[1724634275734,36.93244068,159.15,159.04,65.0]
[1724634277703,24.32964068,159.17,159.04,65.0]
[1724634277902,25.90111168,159.17,159.04,65.0]
[1724634278697,24.32964068,159.17,159.06,15.2787]
[1724634278902,24.32964068,159.17,159.07,65.0]
[1724634279536,24.32964068,159.17,159.08,1.25688255]
[1724634280632,1.57115249,159.16,159.07,65.0]
[1724634281740,7.85435249,159.16,159.07,20.0]
[1724634282407,24.32964068,159.15,159.07,20.0]
[1724634282610,1.57128456,159.14,159.07,20.0]
[1724634283325,24.32964068,159.15,159.08,0.90528632]
[1724634284272,1.57124493,159.14,159.07,20.0]
[1724634284648,24.32964068,159.15,159.07,20.0]
[1724634285424,24.32964068,159.15,159.08,0.91530115]
[1724634286158,1.57132568,159.14,159.07,20.0]
[1724634286328,30.61324068,159.15,159.07,20.0]
[1724634287240,1.57143172,159.14,159.07,20.0]
[1724634287437,24.32964068,159.15,159.07,20.0]
[1724634287841,1.57132236,159.14,159.07,20.0]
[1724634288059,9.72064591,159.13,159.07,20.0]
[1724634289366,23.19843797,159.18,159.07,20.0]
[1724634289367,9.72064591,159.16,159.08,1.57311959]
[1724634289537,9.72064591,159.16,159.08,9.06245752]
[1724634290254,9.72064591,159.16,159.08,7.80551959]
[1724634290255,1.57118544,159.15,159.08,7.80551959]
[1724634292069,30.57862526,159.16,159.08,1.25706467]
[1724634292466,1.57133023,159.15,159.07,20.0]
[1724634292640,1.57132747,159.14,159.07,20.0]
[1724634292838,24.29552526,159.16,159.08,1.25706197]
[1724634293139,24.29552526,159.18,159.08,1.25706197]
[1724634293347,30.57802526,159.18,159.08,1.25706197]
[1724634294257,24.29552526,159.18,159.09,1.25693681]
[1724634294561,1.57107904,159.17,159.08,3.90721173]
[1724634295530,1.57107904,159.17,159.08,5.16565124]
[1724634295734,7.85367904,159.17,159.08,5.16565124]
[1724634296932,30.57852526,159.16,159.08,5.16565124]
[1724634297132,1.57132763,159.15,159.08,5.16565124]
[1724634297372,1.57132763,159.14,159.08,5.16565124]
[1724634297549,1.57132763,159.15,159.08,5.16565124]
[1724634297865,30.57802526,159.18,159.09,3.90721173]
[1724634298162,30.57802526,159.18,159.09,5.16412756]
[1724634298662,30.57802526,159.18,159.09,1.25691583]
[1724634299962,24.29552526,159.16,159.08,5.16565124]
[1724634300170,1.57132522,159.15,159.08,5.16565124]
[1724634300367,24.29552526,159.16,159.08,6.42271027]
[1724634300865,1.57118693,159.15,159.08,5.16565124]
[1724634301261,1.57122575,159.14,159.08,5.16565124]
[1724634301464,1.57122575,159.14,159.08,3.90721173]
[1724634302372,1.57122575,159.14,159.07,20.0]
[1724634303072,1.57122575,159.14,159.08,3.90772035]
[1724634305256,25.86675101,159.14,159.08,3.90772035]
[1724634305465,25.86675101,159.14,159.07,20.0]
[1724634305752,24.29552526,159.12,159.07,20.0]
[1724634305968,24.29552526,159.14,159.07,21.25722922]
[1724634306167,30.57852526,159.16,159.08,5.16623888]
[1724634306583,30.57852526,159.16,159.08,6.42329561]
[1724634306760,30.57852526,159.16,159.07,20.0]
[1724634306761,1.57132061,159.15,159.07,20.0]
[1724634306953,1.57132061,159.15,159.06,15.2787]
[1724634306954,25.86684835,159.14,159.08,1.25854313]
[1724634307171,24.29552526,159.12,159.08,3.90768952]
[1724634307361,1.57157399,159.11,159.07,3.90768952]
[1724634307681,25.86710053,159.1,159.07,6.57704265]
[1724634307888,1.57157527,159.1,159.06,15.2787]
[1724634308053,24.29552526,159.07,159.02,15.1926]
[1724634308379,1.57198441,159.06,159.02,15.1926]
[1724634312192,11.30259457,159.06,159.02,15.1926]
[1724634312391,1.57205314,159.05,159.02,15.1926]
[1724634313698,1.57205314,159.05,159.0,0.8188563]
[1724634313699,11.30266235,159.04,159.0,0.8188563]
[1724634313925,9.73061016,159.02,159.0,0.8188563]
[1724634314229,1.57238663,159.01,159.0,0.8188563]
[1724634318088,25.91792726,159.01,159.0,0.8188563]
[1724634318434,30.63444063,159.01,159.0,0.8188563]
[1724634318592,24.34554063,158.98,158.94,15.3639]
[1724634318790,24.34554063,159.0,158.94,15.3639]
[1724634319117,30.63424063,159.02,158.94,15.3639]
[1724634319433,1.57258685,159.01,158.94,15.3639]
[1724634319991,24.34554063,159.0,158.94,15.3639]
[1724634320599,1.57283933,158.99,158.94,15.3639]
[1724634320802,1.57284177,158.98,158.94,15.3639]
[1724634321827,1.57284111,158.99,158.94,15.3639]
[1724634322000,1.57284109,158.98,158.94,15.3639]
[1724634322931,1.57284026,158.99,158.94,15.3639]
[1724634323231,1.57283894,158.98,158.94,15.3639]
[1724634324007,25.91837957,158.98,158.94,15.3639]
[1724634325204,1.57283894,158.98,158.94,15.3639]
[1724634326098,30.63484063,159.0,158.94,15.3639]
[1724634326397,24.34554063,159.02,158.94,15.3639]
[1724634326599,1.57258008,159.01,158.94,15.3639]
[1724634327315,24.34554063,159.04,158.95,1.25806308]
[1724634327521,37.1805734,159.06,158.96,1.25796639]
[1724634327698,30.63244063,159.06,158.97,15.4024]
[1724634329141,30.63244063,159.06,158.97,16.65958116]
[1724634329320,12.84317183,159.08,158.98,7.67566945]
[1724634329321,30.89141246,159.08,158.98,7.67566945]
[1724634329523,24.34554063,159.08,158.99,1.25639043]
[1724634329728,1.57216097,159.07,158.98,6.4192]
[1724634330332,24.34554063,159.1,158.99,1.08926548]
[1724634330535,30.88826251,159.12,159.0,15.6388]
[1724634330841,7.85681772,159.11,159.01,65.0]
[1724634331047,32.20267704,159.1,159.01,20.0]
[1724634332245,51.2857,159.09,159.01,20.0]
[1724634332432,1.572014,159.08,159.01,20.0]
[1724634332937,25.91755463,159.08,159.01,20.0]
[1724634334023,30.63084063,159.1,159.02,0.94664026]
[1724634334414,6.2863,159.08,159.0,15.6388]
[1724634334616,1.57208761,159.07,159.0,15.6388]
[1724634335928,24.34554063,159.12,159.0,15.6388]
[1724634336155,1.57173292,159.11,159.01,65.0]
[1724634336438,1.5717354,159.1,159.01,65.0]
[1724634336644,30.62884063,159.16,159.04,24.34554063]
[1724634336848,6.2836,159.15,159.06,15.0168]
[1724634337022,1.57153586,159.14,159.06,15.0168]
[1724634337224,6.2839,159.14,159.06,15.0168]
[1724634337740,6.2828,159.17,159.07,20.0]
[1724634338851,24.34554063,159.18,159.07,20.65224719]
[1724634338852,6.283,159.16,159.07,20.65224719]
[1724634339010,30.62854063,159.16,159.07,20.65224719]
[1724634339748,24.34554063,159.14,159.06,15.0168]
[1724634340048,1.57144918,159.13,159.06,15.0168]
[1724634340229,7.85554918,159.13,159.06,15.0168]
[1724634340430,24.34554063,159.12,159.06,15.0168]
[1724634340635,1.57161265,159.11,159.06,15.0168]
[1724634340958,1.57161391,159.1,159.06,15.0168]
[1724634341248,1.57161391,159.11,159.06,15.0168]
[1724634341617,1.57161257,159.1,159.06,15.0168]
[1724634342837,30.63004063,159.12,159.06,15.0168]
[1724634343624,24.34554063,159.1,159.06,15.0168]
[1724634343938,30.63174063,159.08,159.02,22.7758]
[1724634346956,24.34554063,159.08,159.02,22.7758]
[1724634347166,24.34554063,159.1,159.02,22.7758]
[1724634347461,1.57189671,159.09,159.02,22.7758]
[1724634347763,7.85779671,159.09,159.02,22.7758]
[1724634348550,30.63094063,159.1,159.02,22.7758]
[1724634348942,1.57183556,159.09,159.02,22.7758]
[1724634349868,24.34554063,159.06,159.02,22.7758]
[1724634350043,1.57209593,159.05,159.02,22.7758]
[1724634350238,24.34554063,159.08,159.02,22.7758]
[1724634351151,45.0,159.09,159.02,22.7758]
[1724634351356,30.63124063,159.1,159.02,22.7758]
[1724634351561,24.34554063,159.1,159.03,1.25746344]
[1724634351772,24.34554063,159.12,159.03,1.25746344]
[1724634352069,45.0,159.11,159.03,1.25746344]
[1724634352438,51.2849,159.11,159.03,1.25746344]
[1724634352638,6.2855,159.1,159.03,1.25746344]
[1724634352843,6.285,159.11,159.02,22.7758]
[1724634353346,6.285,159.11,159.03,1.25737458]
[1724634353572,6.285,159.11,159.02,22.7758]
[1724634353780,6.285,159.11,159.03,1.57360442]
[1724634354444,24.34554063,159.12,159.03,2.83097721]
[1724634354645,24.34554063,159.12,159.03,22.83097721]
[1724634354844,24.34554063,159.12,159.04,1.57360442]
[1724634355080,24.34554063,159.12,159.03,21.25737279]
[1724634355980,22.49687371,159.17,159.05,15.9224]
[1724634355981,30.62854063,159.16,159.05,15.9224]
[1724634356348,7.85488896,159.15,159.05,15.9224]
[1724634356549,7.85514303,159.14,159.05,15.9224]
[1724634356854,32.20068366,159.14,159.05,15.9224]
[1724634357065,30.62924063,159.14,159.05,15.9224]
[1724634357574,30.62924063,159.14,159.06,1.16955639]
[1724634357779,24.34554063,159.14,159.06,1.16955639]
[1724634357943,24.34554063,159.14,159.06,2.74291209]
[1724634358355,24.34554063,159.14,159.06,1.16955639]
[1724634358849,24.34554063,159.14,159.06,2.74283836]
[1724634359060,24.34554063,159.14,159.06,1.16955639]
[1724634359863,6.2833,159.15,159.05,15.9224]
[1724634360051,6.2833,159.15,159.06,20.0]
[1724634360385,32.20071989,159.14,159.06,20.0]
[1724634361243,1.571486,159.13,159.06,20.0]
[1724634362774,24.34554063,159.1,159.05,15.9224]
[1724634362975,1.57191975,159.09,159.05,15.9224]
[1724634363159,30.63034063,159.12,159.05,15.9224]
[1724634364184,24.34554063,159.1,159.03,1.25743408]
[1724634364351,24.34554063,159.1,158.99,15.4131]
[1724634364352,24.34554063,159.04,159.0,2.8324087]
[1724634364551,7.86065105,159.03,158.99,15.4131]
[1724634365177,6.2885,159.02,158.99,15.4131]
[1724634365387,1.57255077,159.01,158.99,15.4131]
[1724634366559,1.57252788,159.03,158.99,15.4131]
[1724634366859,32.46911567,159.08,158.99,15.4131]
[1724634367182,1.57221301,159.07,158.99,15.4131]
[1724634368780,1.57221301,159.07,159.0,1.57395732]
[1724634368982,24.34554063,159.06,158.99,15.4131]
[1724634369183,7.85965793,159.05,158.99,15.4131]
[1724634369392,1.57235545,159.04,158.99,15.4131]